bitfinex/quotes_BTCUSD_20241206
["timestamp","ask_amount","ask_price","bid_price","bid_amount"]
[1733500629395,4e-05,99281.0,99278.0,0.023]
[1733500629616,0.201452,99279.0,99278.0,0.023]
[1733500629879,0.201452,99279.0,99278.0,0.02920327]
[1733500630131,0.402904,99279.0,99273.0,0.023]
[1733500630357,0.402904,99279.0,99268.0,0.023]
[1733500630604,0.201452,99279.0,99276.0,0.001]
[1733500631051,0.201452,99279.0,99267.0,0.0774]
[1733500631052,0.201452,99279.0,99268.0,0.023]
[1733500631278,0.201452,99279.0,99273.0,0.001]
[1733500631702,0.201452,99279.0,99274.0,0.00618088]
[1733500631920,0.402905,99279.0,99275.0,0.023]
[1733500632348,0.402905,99279.0,99276.0,0.001]
[1733500632567,0.201452,99279.0,99276.0,0.001]
[1733500633501,0.02442877,99278.0,99268.0,0.023]
[1733500633765,0.02442877,99278.0,99275.0,0.001]
[1733500633766,0.00939568,99277.0,99275.0,0.001]
[1733500634009,0.01503309,99278.0,99276.0,0.20853154]
[1733500634225,0.00939468,99277.0,99276.0,0.21469771]
[1733500634456,0.00939468,99277.0,99276.0,0.21569771]
[1733500634676,0.00624087,99277.0,99276.0,0.21469771]
[1733500634931,0.00624087,99277.0,99276.0,0.21569771]
[1733500635203,0.00624087,99277.0,99276.0,0.00716617]
[1733500635417,0.02127146,99277.0,99276.0,0.00616617]
[1733500635666,0.02127146,99277.0,99261.0,0.0866959]
[1733500635667,0.02127153,99277.0,99264.0,0.02024069]
[1733500635891,0.201475,99268.0,99264.0,0.02024069]
[1733500636114,0.201475,99268.0,99265.0,0.00618639]
[1733500636324,0.201475,99268.0,99261.0,0.0866959]
[1733500636564,0.201475,99268.0,99262.0,0.023]
[1733500636751,0.201475,99268.0,99262.0,0.03651959]
[1733500636964,0.402951,99268.0,99264.0,0.023]
[1733500637180,0.402951,99268.0,99264.0,0.025]
[1733500637181,0.201475,99268.0,99264.0,0.025]
[1733500637413,0.201475,99268.0,99264.0,0.023]
[1733500637623,0.201475,99268.0,99261.0,0.0866959]
[1733500637624,0.202475,99268.0,99266.0,0.023]
[1733500637833,0.201475,99268.0,99266.0,0.023]
[1733500638268,0.202475,99268.0,99267.0,0.02916769]
[1733500639243,0.252475,99268.0,99267.0,0.00616769]
[1733500639470,0.252475,99268.0,99250.0,0.0008669]
[1733500639471,0.201495,99259.0,99252.0,0.01042536]
[1733500639706,0.0017344,99280.0,99255.0,0.02064772]
[1733500639707,0.05,99275.0,99255.0,0.02064772]
[1733500639924,0.201476,99267.0,99266.0,0.003]
[1733500640371,0.201476,99267.0,99266.0,0.002]
[1733500640813,0.201476,99267.0,99256.0,0.023]
[1733500640814,0.201487,99262.0,99256.0,0.023]
[1733500641028,0.201487,99262.0,99256.0,0.02357729]
[1733500641301,0.201487,99262.0,99257.0,0.00620731]
[1733500641499,0.201487,99262.0,99258.0,0.023]
[1733500641960,0.201487,99262.0,99260.0,0.023]
[1733500642205,0.05,99275.0,99260.0,0.023]
[1733500642206,0.201473,99269.0,99260.0,0.023]
[1733500642448,0.0009889,99276.0,99260.0,0.023]
[1733500642728,0.01576583,99262.0,99261.0,0.13424003]
[1733500642952,0.0009889,99276.0,99262.0,0.224486]
[1733500643184,0.0017344,99280.0,99272.0,0.023]
[1733500643394,0.01576414,99273.0,99272.0,0.12803154]
[1733500643953,0.0017344,99280.0,99272.0,0.12803154]
[1733500644447,0.0017344,99280.0,99276.0,0.1018]
[1733500644664,0.0017344,99280.0,99277.0,0.023]
[1733500644883,0.201452,99279.0,99277.0,0.023]
[1733500645322,0.0017344,99280.0,99272.0,0.002]
[1733500645323,0.0017344,99280.0,99279.0,0.023]
[1733500645847,0.0017344,99280.0,99272.0,0.002]
[1733500645848,0.201462,99274.0,99273.0,0.023]
[1733500646064,0.201462,99274.0,99272.0,0.001]
[1733500646763,0.402932,99272.0,99266.0,0.023]
[1733500647662,0.201468,99271.0,99268.0,0.023]
[1733500647904,0.0017344,99280.0,99268.0,0.023]
[1733500648137,0.201465,99273.0,99271.0,0.023]
[1733500648585,0.201465,99273.0,99272.0,0.02932585]
[1733500648809,0.201465,99273.0,99271.0,0.023]
[1733500649027,0.201465,99273.0,99272.0,0.00632585]
[1733500649263,0.201465,99273.0,99272.0,0.023]
[1733500649264,0.21089267,99273.0,99272.0,0.023]
[1733500649717,0.21089267,99273.0,99271.0,0.023]
[1733500649983,0.00942767,99272.0,99271.0,0.023]
[1733500650775,0.00942767,99272.0,99271.0,0.14097202]
[1733500651000,0.0017344,99280.0,99271.0,0.14097202]
[1733500651001,0.0017344,99280.0,99278.0,0.201452]
[1733500651221,0.0017344,99280.0,99279.0,0.12803154]
[1733500651878,0.01116144,99280.0,99279.0,0.12803154]
[1733500653099,0.01116144,99280.0,99279.0,0.023]
[1733500653330,0.01116144,99280.0,99278.0,0.001]
[1733500653553,0.00942704,99279.0,99273.0,0.023]
[1733500653774,0.201456,99277.0,99275.0,0.023]
[1733500653998,0.201456,99277.0,99270.0,0.02054757]
[1733500653999,0.21088504,99276.0,99270.0,0.02054757]
[1733500654264,0.201468,99271.0,99270.0,0.02054757]
[1733500654718,0.21089504,99271.0,99270.0,0.02054757]
[1733500655186,0.21089504,99271.0,99270.0,0.04354757]
[1733500655471,0.21089504,99271.0,99270.0,0.023867]
[1733500655693,0.201468,99271.0,99270.0,0.000867]
[1733500655947,0.21089487,99271.0,99270.0,0.000867]
[1733500656616,0.21089487,99271.0,99270.0,0.024867]
[1733500657061,0.21089487,99271.0,99270.0,0.023867]
[1733500657283,0.21189487,99271.0,99270.0,0.000867]
[1733500657504,0.21093487,99271.0,99270.0,0.000867]
[1733500657995,0.21193487,99271.0,99270.0,0.000867]
[1733500658220,0.21093487,99271.0,99270.0,0.000867]
[1733500658668,0.26093487,99271.0,99270.0,0.000867]
[1733500659369,0.26193487,99271.0,99270.0,0.000867]
[1733500659857,0.26093487,99271.0,99270.0,0.000867]
[1733500660075,0.26193487,99271.0,99270.0,0.000867]
[1733500661669,0.26193487,99271.0,99270.0,1e-06]
[1733500661670,0.58423954,99271.0,99270.0,1e-06]
[1733500662034,0.62673506,99271.0,99270.0,1e-06]
[1733500662348,0.05,99257.0,99256.0,2.9e-07]
[1733500662573,0.45,99251.0,99250.0,1.9e-07]
[1733500662830,1.06400101,99251.0,99250.0,1.9e-07]
[1733500663046,1.01475182,99251.0,99250.0,1.9e-07]
[1733500663282,0.96475182,99251.0,99250.0,1.9e-07]
[1733500663497,0.90189695,99251.0,99250.0,1.9e-07]
[1733500663730,0.53259695,99251.0,99250.0,1.9e-07]
[1733500663964,0.51654054,99251.0,99250.0,1.9e-07]
[1733500664209,0.254509,99251.0,99250.0,1.9e-07]
[1733500664425,0.254509,99251.0,99218.0,0.0752]
[1733500664426,0.201537,99237.0,99226.0,0.19556875]
[1733500664636,0.05,99246.0,99235.0,0.023]
[1733500664878,0.012,99251.0,99235.0,0.023]
[1733500664879,0.201528,99242.0,99235.0,0.023]
[1733500665089,0.201528,99242.0,99237.0,0.023]
[1733500665304,0.201511,99250.0,99239.0,0.023]
[1733500665527,0.201511,99250.0,99238.0,0.201535]
[1733500665528,0.016,99251.0,99247.0,0.023]
[1733500665773,0.016,99251.0,99248.0,0.201515]
[1733500665992,0.009,99251.0,99249.0,0.023]
[1733500666216,0.009,99251.0,99250.0,0.36303345]
[1733500666432,0.00057903,99257.0,99251.0,0.023]
[1733500666646,0.00057903,99257.0,99252.0,0.10503154]
[1733500666859,0.00057903,99257.0,99253.0,0.023]
[1733500667303,0.00057903,99257.0,99255.0,0.023]
[1733500667563,0.00057903,99257.0,99256.0,0.04018713]
[1733500667778,0.00057903,99257.0,99256.0,0.02835237]
[1733500667990,0.00157903,99257.0,99256.0,0.02835237]
[1733500668206,0.00057903,99257.0,99256.0,0.02835237]
[1733500669527,0.00057903,99257.0,99256.0,0.03035237]
[1733500670016,0.00057903,99257.0,99256.0,0.02835237]
[1733500670237,0.00057903,99257.0,99256.0,0.03035237]
[1733500670588,0.00057903,99257.0,99256.0,0.025]
[1733500670819,0.00057903,99257.0,99256.0,0.028]
[1733500671224,0.00057903,99257.0,99256.0,0.025]
[1733500671456,0.00057903,99257.0,99256.0,0.026]
[1733500671665,0.00057903,99257.0,99256.0,0.028]
[1733500672076,0.05057903,99257.0,99256.0,0.026]
[1733500672513,0.05057903,99257.0,99256.0,0.027]
[1733500672718,0.05057903,99257.0,99256.0,0.024]
[1733500672927,0.05057903,99257.0,99256.0,0.023]
[1733500673141,0.05057903,99257.0,99256.0,0.024]
[1733500673339,0.05257903,99257.0,99256.0,0.023]
[1733500673567,0.05657903,99257.0,99256.0,0.023]
[1733500674409,0.00257903,99257.0,99256.0,0.023]
[1733500674637,0.00057903,99257.0,99256.0,0.023]
[1733500674882,0.00457903,99257.0,99252.0,0.023]
[1733500675077,0.00657903,99257.0,99256.0,0.00536048]
[1733500675298,0.20807603,99257.0,99256.0,0.02836048]
[1733500675511,0.20607603,99257.0,99256.0,0.023]
[1733500675734,0.20607603,99257.0,99256.0,0.024]
[1733500676227,0.20607603,99257.0,99256.0,0.023]
[1733500676447,0.25207603,99257.0,99256.0,0.024]
[1733500676898,0.25607603,99257.0,99256.0,0.024]
[1733500677123,0.25207603,99257.0,99256.0,0.024]
[1733500677388,0.25207603,99257.0,99256.0,0.025]
[1733500677615,0.25207603,99257.0,99256.0,0.024]
[1733500677797,0.25207603,99257.0,99256.0,0.023]
[1733500678011,0.25307603,99257.0,99256.0,0.02386]
[1733500678214,0.25207603,99257.0,99256.0,0.02386]
[1733500678592,0.20207603,99257.0,99256.0,0.02286]
[1733500678792,0.00057903,99257.0,99256.0,0.02286]
[1733500678987,0.00057903,99257.0,99246.0,0.201518]
[1733500679195,0.00057903,99257.0,99247.0,0.05452866]
[1733500679522,0.00057903,99257.0,99248.0,0.201515]
[1733500679523,0.00157903,99257.0,99248.0,0.201515]
[1733500679704,0.00057903,99257.0,99248.0,0.201515]
[1733500679894,0.00057903,99257.0,99247.0,0.05452866]
[1733500679895,0.40357303,99257.0,99249.0,0.00537544]
[1733500680094,0.40357303,99257.0,99251.0,0.0435758]
[1733500680095,0.00157903,99257.0,99251.0,0.0435758]
[1733500680298,0.00057903,99257.0,99251.0,0.0435758]
[1733500680501,0.00057903,99257.0,99253.0,0.023]
[1733500680713,0.00057903,99257.0,99255.0,0.023]
[1733500680936,0.00057903,99257.0,99256.0,0.10503154]
[1733500681201,0.00057903,99257.0,99256.0,0.13338722]
[1733500681384,0.00057903,99257.0,99256.0,0.02835568]
[1733500681610,0.00057903,99257.0,99252.0,0.023]
[1733500681956,0.00057903,99257.0,99252.0,0.12803154]
[1733500681957,0.201501,99255.0,99252.0,0.12803154]
[1733500682174,0.201501,99255.0,99254.0,0.023]
[1733500683319,0.21091283,99255.0,99254.0,0.023]
[1733500683756,0.201501,99255.0,99254.0,0.023]
[1733500683975,0.201537,99237.0,99236.0,0.02030389]
[1733500684237,0.201551,99230.0,99228.0,0.0781]
[1733500684451,0.17557784,99250.0,99220.0,0.0008675]
[1733500684452,0.20155,99231.0,99226.0,0.02064649]
[1733500684670,0.201554,99229.0,99220.0,0.0008675]
[1733500684892,0.20157,99221.0,99220.0,0.0008675]
[1733500686239,0.20157,99221.0,99220.0,0.00104072]
[1733500687367,0.25157,99221.0,99220.0,0.00104072]
[1733500690944,0.35660154,99221.0,99220.0,0.00104072]
[1733500691163,0.50660154,99221.0,99220.0,0.00104072]
[1733500692282,0.50960154,99221.0,99220.0,0.00104072]
[1733500692493,0.59270154,99221.0,99220.0,0.00104072]
[1733500692993,0.25457,99221.0,99220.0,0.00104072]
[1733500693204,0.26057,99221.0,99220.0,0.00104072]
[1733500693428,0.25457,99221.0,99220.0,0.00104072]
[1733500693641,0.25157,99221.0,99220.0,0.00104072]
[1733500693873,0.25957,99221.0,99220.0,0.00104072]
[1733500694121,0.25157,99221.0,99220.0,0.00104072]
[1733500694332,0.25557,99221.0,99220.0,0.00104072]
[1733500695001,0.25957,99221.0,99220.0,0.00104072]
[1733500695471,0.26357,99221.0,99220.0,0.00104072]
[1733500697970,0.012,99221.0,99220.0,0.00104072]
[1733500698213,0.012,99221.0,99220.0,0.15757863]
[1733500698456,0.012,99221.0,99220.0,0.16304118]
[1733500699125,0.004,99221.0,99220.0,0.16304118]
[1733500699353,0.005,99221.0,99220.0,0.16704118]
[1733500699579,0.001,99221.0,99220.0,0.16704118]
[1733500699805,0.201534,99239.0,99221.0,0.20157]
[1733500699806,0.403068,99239.0,99221.0,0.20157]
[1733500700031,0.05,99242.0,99222.0,0.12803154]
[1733500700250,0.201551,99231.0,99222.0,0.13350178]
[1733500700689,0.05,99242.0,99222.0,0.13350178]
[1733500700690,0.201562,99225.0,99222.0,0.02847024]
[1733500700920,0.05,99233.0,99222.0,0.02847024]
[1733500701154,0.0009844,99242.0,99226.0,0.023]
[1733500701390,0.0009844,99242.0,99224.0,0.023]
[1733500701391,0.0009844,99242.0,99240.0,0.023]
[1733500701621,0.001735,99260.0,99259.0,0.201493]
[1733500701851,0.001735,99260.0,99259.0,0.0431493]
[1733500702344,0.001735,99260.0,99259.0,0.04878124]
[1733500703084,4e-05,99271.0,99267.0,0.201476]
[1733500703323,4e-05,99271.0,99269.0,0.023]
[1733500703565,0.00061903,99271.0,99269.0,0.023]
[1733500703791,0.00061903,99271.0,99270.0,0.02885847]
[1733500704030,0.00061903,99271.0,99270.0,0.06242192]
[1733500704718,0.00161903,99271.0,99270.0,0.06242192]
[1733500705914,0.00061903,99271.0,99270.0,0.16745346]
[1733500706362,0.00061903,99271.0,99270.0,0.17545346]
[1733500706363,0.00161903,99271.0,99270.0,0.17545346]
[1733500706595,0.00061903,99271.0,99270.0,0.17045346]
[1733500706831,0.00161903,99271.0,99270.0,0.17245346]
[1733500707063,0.00161903,99271.0,99270.0,0.16745346]
[1733500707064,0.00061903,99271.0,99270.0,0.16745346]
[1733500707291,0.00061903,99271.0,99270.0,0.17245346]
[1733500707511,0.00161903,99271.0,99270.0,0.18045346]
[1733500707731,0.00061903,99271.0,99270.0,0.16745346]
[1733500708232,0.00061903,99271.0,99270.0,0.17245346]
[1733500709085,0.00161903,99271.0,99270.0,0.19201718]
[1733500709518,0.00161903,99271.0,99270.0,0.18701718]
[1733500709973,0.00161903,99271.0,99270.0,0.19201718]
[1733500710401,0.00161903,99271.0,99270.0,0.18701718]
[1733500710852,0.00261903,99271.0,99270.0,0.19301718]
[1733500712132,0.00261903,99271.0,99270.0,0.19704918]
[1733500712353,0.00161903,99271.0,99270.0,0.19104918]
[1733500712570,0.00061903,99271.0,99270.0,0.18204918]
[1733500712803,0.00261903,99271.0,99270.0,0.19704918]
[1733500713331,0.00061903,99271.0,99270.0,0.18204918]
[1733500713538,0.00261903,99271.0,99270.0,0.19704918]
[1733500713760,0.00161903,99271.0,99270.0,0.18804918]
[1733500714041,0.20074048,99302.0,99291.0,0.023]
[1733500714276,0.20074048,99302.0,99292.0,0.15047474]
[1733500714277,0.000983,99293.0,99292.0,0.15047474]
[1733500714520,0.00017367,99302.0,99293.0,0.023]
[1733500714734,0.00017367,99302.0,99295.0,0.023]
[1733500714948,0.00017367,99302.0,99296.0,0.10503154]
[1733500715175,0.00017367,99302.0,99297.0,0.023]
[1733500715439,0.00017367,99302.0,99297.0,0.12803154]
[1733500715672,0.00017367,99302.0,99299.0,0.023]
[1733500715959,0.00017367,99302.0,99298.0,0.00576629]
[1733500715960,0.00117367,99302.0,99301.0,0.023]
[1733500716419,0.00017367,99302.0,99301.0,0.02873704]
[1733500716640,0.00417367,99302.0,99301.0,0.02873704]
[1733500717091,0.00117367,99302.0,99301.0,0.02873704]
[1733500717256,0.00417367,99302.0,99301.0,0.04963065]
[1733500717504,0.00017367,99302.0,99301.0,0.04963065]
[1733500717891,0.00017367,99302.0,99301.0,0.06938399]
[1733500718925,0.00017367,99302.0,99301.0,0.07038399]
[1733500719130,0.00017367,99302.0,99301.0,0.06938399]
[1733500719545,0.00017367,99302.0,99301.0,0.07038399]
[1733500719546,0.00117367,99302.0,99301.0,0.07038399]
[1733500719991,0.00017367,99302.0,99301.0,0.07038399]
[1733500720189,0.00017367,99302.0,99301.0,0.07138399]
[1733500720813,0.00017367,99302.0,99301.0,0.07038399]
[1733500721021,0.00017367,99302.0,99301.0,0.07238399]
[1733500721886,0.00017367,99302.0,99301.0,0.07138399]
[1733500722325,0.00017367,99302.0,99301.0,0.07338399]
[1733500722564,0.00017367,99302.0,99301.0,0.06938399]
[1733500722788,0.00017367,99302.0,99301.0,0.07338399]
[1733500723222,0.00017367,99302.0,99301.0,0.27279099]
[1733500723499,0.00017367,99302.0,99301.0,0.27479099]
[1733500723725,0.00017367,99302.0,99301.0,0.27279099]
[1733500724163,0.00017367,99302.0,99301.0,0.37982253]
[1733500724377,0.00017367,99302.0,99301.0,0.45492253]
[1733500724591,0.00017367,99302.0,99301.0,0.50492253]
[1733500725235,0.00017367,99302.0,99301.0,0.50292253]
[1733500725461,0.00017367,99302.0,99301.0,0.50492253]
[1733500725682,0.00017367,99302.0,99301.0,0.50092253]
[1733500725956,0.00017367,99302.0,99301.0,0.50392253]
[1733500726105,0.00117367,99302.0,99301.0,0.51292253]
[1733500726521,0.00117367,99302.0,99301.0,0.45992253]
[1733500726730,0.402686,99333.0,99319.0,0.023]
[1733500726939,0.201352,99329.0,99321.0,0.023]
[1733500727185,0.201352,99329.0,99321.0,0.12803154]
[1733500727375,0.201352,99329.0,99323.0,0.023]
[1733500727816,0.201352,99329.0,99325.0,0.023]
[1733500728044,0.201353,99328.0,99326.0,0.00566677]
[1733500728268,0.00017357,99333.0,99327.0,0.04062732]
[1733500728496,0.201347,99331.0,99327.0,0.04062732]
[1733500728713,0.201347,99331.0,99329.0,0.023]
[1733500728714,0.0093491,99330.0,99329.0,0.023]
[1733500729187,0.201351,99329.0,99328.0,0.023]
[1733500729407,0.2107001,99329.0,99328.0,0.023]
[1733500729845,0.2107001,99329.0,99328.0,0.03953248]
[1733500730283,0.0093491,99329.0,99328.0,0.03953248]
[1733500730505,0.0093491,99329.0,99328.0,0.04253248]
[1733500730728,0.0093491,99329.0,99328.0,0.04819624]
[1733500730933,0.00936035,99329.0,99328.0,0.04819624]
[1733500731178,0.02433719,99329.0,99328.0,0.04819624]
[1733500731396,0.02433719,99329.0,99328.0,0.05119624]
[1733500731828,0.02433719,99329.0,99328.0,0.029]
[1733500732289,0.02433719,99329.0,99328.0,0.026]
[1733500732991,0.02433719,99329.0,99328.0,0.029]
[1733500735300,0.02433719,99329.0,99328.0,0.026]
[1733500735519,0.02433719,99329.0,99328.0,0.028]
[1733500736180,0.02433719,99329.0,99328.0,0.026]
[1733500736425,0.02433719,99329.0,99328.0,0.029]
[1733500737750,0.07559559,99329.0,99328.0,0.006]
[1733500737971,0.05,99321.0,99320.0,0.0008656]
[1733500738200,0.37570419,99321.0,99320.0,0.0008656]
[1733500738440,0.02433719,99321.0,99320.0,0.0008656]
[1733500739169,0.02433719,99321.0,99320.0,0.0018656]
[1733500739391,0.02433719,99321.0,99320.0,0.0248656]
[1733500739613,0.03033719,99321.0,99320.0,0.0238656]
[1733500740056,0.03033719,99321.0,99320.0,0.33026614]
[1733500740288,0.01536035,99321.0,99320.0,0.37092275]
[1733500740503,0.01536035,99321.0,99320.0,0.37581073]
[1733500740722,0.01565794,99346.0,99339.0,0.30063]
[1733500740928,0.01503072,99346.0,99345.0,0.224318]
[1733500741161,0.01503072,99346.0,99345.0,0.32934954]
[1733500741366,0.01503072,99346.0,99345.0,0.33431151]
[1733500741627,0.001735,99360.0,99353.0,0.201302]
[1733500741837,0.001735,99360.0,99354.0,0.13300268]
[1733500742045,0.404313,99360.0,99356.0,0.023]
[1733500742274,0.404313,99360.0,99345.0,0.02001359]
[1733500742275,0.05,99356.0,99346.0,0.023]
[1733500742532,0.201313,99348.0,99346.0,0.023]
[1733500742742,0.201313,99348.0,99347.0,0.02796788]
[1733500742951,0.05,99356.0,99348.0,0.023]
[1733500742952,0.2013,99354.0,99348.0,0.023]
[1733500743412,0.402604,99353.0,99346.0,0.025]
[1733500743606,0.201311,99349.0,99346.0,0.025]
[1733500743816,0.201311,99349.0,99346.0,0.03709632]
[1733500744029,0.201302,99353.0,99346.0,0.03709632]
[1733500744458,0.0017312,99350.0,99347.0,0.00496237]
[1733500744666,0.0017312,99350.0,99349.0,0.023]
[1733500744873,0.0017312,99350.0,99349.0,0.12803154]
[1733500745127,0.0017312,99350.0,99349.0,0.19012308]
[1733500745997,0.0017312,99350.0,99349.0,0.19812308]
[1733500746472,0.0017312,99350.0,99349.0,0.19512308]
[1733500746703,0.0017312,99350.0,99349.0,0.32642308]
[1733500747117,0.0017312,99350.0,99349.0,0.32142308]
[1733500747345,0.0017312,99350.0,99349.0,0.32442308]
[1733500747563,0.0017312,99350.0,99349.0,0.34097846]
[1733500747791,0.0017312,99350.0,99349.0,0.33497846]
[1733500748261,0.0017312,99350.0,99349.0,0.34397846]
[1733500748467,0.0017312,99350.0,99349.0,0.33497846]
[1733500748680,0.0017312,99350.0,99349.0,0.33197846]
[1733500748900,0.0027312,99350.0,99349.0,0.34797846]
[1733500749364,0.0027312,99350.0,99349.0,0.39797846]
[1733500749574,0.001735,99360.0,99349.0,0.39797846]
[1733500749575,0.001735,99360.0,99359.0,0.20129]
[1733500749782,0.001733,99370.0,99369.0,0.22427]
[1733500750017,0.00190654,99370.0,99369.0,0.32930154]
[1733500750274,0.00190654,99370.0,99369.0,0.33419158]
[1733500750713,0.00190654,99370.0,99369.0,0.35445047]
[1733500750945,0.01690278,99370.0,99369.0,0.41502352]
[1733500751172,0.00190654,99370.0,99369.0,0.41502352]
[1733500751377,0.00190654,99370.0,99369.0,0.41002352]
[1733500751599,0.00190654,99370.0,99369.0,0.15318047]
[1733500751822,0.00190654,99370.0,99369.0,0.16331929]
[1733500752242,0.03189195,99370.0,99369.0,0.17231929]
[1733500752693,0.04126287,99370.0,99369.0,0.17731929]
[1733500753561,0.04126287,99370.0,99369.0,0.16831929]
[1733500753769,0.04126287,99370.0,99369.0,0.18515122]
[1733500754022,0.04126287,99370.0,99369.0,0.19115122]
[1733500754224,0.04126287,99370.0,99369.0,0.18515122]
[1733500754647,0.04126287,99370.0,99369.0,0.06328775]
[1733500754867,0.04126287,99370.0,99369.0,0.06728775]
[1733500755085,0.04126287,99370.0,99369.0,0.07128775]
[1733500755303,0.04126287,99370.0,99369.0,0.06228775]
[1733500755527,0.04126287,99370.0,99369.0,0.06428775]
[1733500755777,0.04126287,99370.0,99369.0,0.11097143]
[1733500755991,0.04126287,99370.0,99369.0,0.06728775]
[1733500756412,0.04126287,99370.0,99369.0,0.06428775]
[1733500756650,0.04126287,99370.0,99369.0,0.06728775]
[1733500756856,0.04126287,99370.0,99369.0,0.16631929]
[1733500757063,0.04126287,99370.0,99369.0,0.17231929]
[1733500757274,0.04126287,99370.0,99369.0,0.22980622]
[1733500757275,0.02626946,99370.0,99369.0,0.22980622]
[1733500757923,0.01689854,99370.0,99369.0,0.30430622]
[1733500758130,0.01689854,99370.0,99369.0,0.31030622]
[1733500758384,0.01689854,99370.0,99369.0,0.31330622]
[1733500759039,0.01689854,99370.0,99369.0,0.22980622]
[1733500759267,0.01689854,99370.0,99369.0,0.23480622]
[1733500760149,0.01689854,99370.0,99369.0,0.02902886]
[1733500760812,0.01127174,99370.0,99369.0,0.02902886]
[1733500761232,0.01127174,99370.0,99369.0,0.02413882]
[1733500761729,0.01127265,99370.0,99369.0,0.02413882]
[1733500762399,0.06253196,99370.0,99369.0,0.014]
[1733500762621,0.01127409,99370.0,99369.0,0.014]
[1733500762854,0.01127409,99370.0,99369.0,0.11403154]
[1733500763077,0.00190654,99370.0,99369.0,0.15828563]
[1733500763318,0.00190654,99370.0,99369.0,0.14928563]
[1733500763575,0.09145383,99440.0,99369.0,0.37188563]
[1733500763801,0.01561322,99414.0,99399.0,0.424209]
[1733500764048,0.01561322,99424.0,99409.0,0.224189]
[1733500764314,0.0517304,99430.0,99410.0,0.04766127]
[1733500764315,0.05,99419.0,99410.0,0.04766127]
[1733500764526,0.02433934,99418.0,99410.0,0.04766127]
[1733500764742,0.00936022,99417.0,99412.0,0.201182]
[1733500764967,0.0005787,99414.0,99413.0,0.023]
[1733500765165,0.0005787,99414.0,99413.0,0.02781043]
[1733500765166,0.00993892,99414.0,99413.0,0.02781043]
[1733500766288,0.00993892,99414.0,99413.0,0.02881043]
[1733500766500,0.21111692,99414.0,99413.0,0.02881043]
[1733500766728,0.00993892,99414.0,99413.0,0.02881043]
[1733500766938,0.00993892,99414.0,99413.0,0.03181043]
[1733500767150,0.00993892,99414.0,99413.0,0.02881043]
[1733500767375,0.00993892,99414.0,99413.0,0.00581043]
[1733500767586,0.00993892,99414.0,99413.0,0.00681043]
[1733500767800,0.00993892,99414.0,99413.0,0.001]
[1733500768032,0.07491484,99414.0,99413.0,0.001]
[1733500768251,0.07617221,99414.0,99413.0,0.001]
[1733500769476,0.40236,99413.0,99406.0,0.01026256]
[1733500769711,0.07617221,99414.0,99406.0,0.01026256]
[1733500769712,0.02433614,99412.0,99406.0,0.01026256]
[1733500769942,0.201193,99407.0,99393.0,0.023]
[1733500770187,0.02433614,99406.0,99395.0,0.023]
[1733500770426,0.02433614,99406.0,99394.0,0.12745384]
[1733500770427,0.22553314,99405.0,99401.0,0.02052409]
[1733500770678,0.02433614,99404.0,99401.0,0.02052409]
[1733500770922,0.0005787,99414.0,99402.0,0.13283922]
[1733500770923,0.00936022,99403.0,99402.0,0.13283922]
[1733500771649,0.00936022,99403.0,99395.0,0.004]
[1733500771650,0.201203,99402.0,99400.0,0.023]
[1733500771892,0.00936022,99401.0,99400.0,0.023]
[1733500772382,0.00936022,99401.0,99400.0,0.02777303]
[1733500772614,0.00936022,99401.0,99400.0,0.023]
[1733500773364,0.00936022,99401.0,99400.0,0.05040657]
[1733500773637,0.02435908,99401.0,99400.0,0.05040657]
[1733500773877,0.02435908,99401.0,99400.0,0.0551796]
[1733500774123,0.02435908,99401.0,99400.0,0.05040657]
[1733500774357,0.02435908,99401.0,99400.0,0.05640657]
[1733500774603,0.02435908,99401.0,99400.0,0.0611796]
[1733500775078,0.00936022,99401.0,99400.0,0.16621114]
[1733500776902,0.0187396,99401.0,99400.0,0.16621114]
[1733500777183,0.0017306,99420.0,99402.0,0.023]
[1733500777419,0.01500751,99413.0,99407.0,0.201191]
[1733500777644,0.01500751,99412.0,99408.0,0.12803154]
[1733500777871,0.0243872,99411.0,99408.0,0.13280912]
[1733500778119,0.0243872,99410.0,99408.0,0.13280912]
[1733500778340,0.00937969,99409.0,99408.0,0.13280912]
[1733500778561,0.00937969,99409.0,99408.0,0.17877247]
[1733500778806,0.0243872,99409.0,99408.0,0.17877247]
[1733500779027,0.0243872,99409.0,99408.0,0.37996347]
[1733500779505,0.0243872,99409.0,99408.0,0.38096347]
[1733500779957,0.0243872,99409.0,99408.0,0.38296347]
[1733500780178,0.0243872,99409.0,99408.0,0.38096347]
[1733500780617,0.0243872,99409.0,99408.0,0.33500012]
[1733500780863,0.0243872,99409.0,99408.0,0.13280912]
[1733500781090,0.0243872,99409.0,99408.0,0.14080912]
[1733500781330,0.0243872,99409.0,99408.0,0.13480912]
[1733500781560,0.0243872,99409.0,99408.0,0.13880912]
[1733500782019,0.0243872,99409.0,99408.0,0.1959379]
[1733500782472,0.0243872,99409.0,99408.0,0.3971289]
[1733500782988,0.0243872,99409.0,99408.0,0.1899379]
[1733500783241,0.0243872,99409.0,99408.0,0.14080912]
[1733500784419,0.02440428,99409.0,99408.0,0.01277758]
[1733500784664,0.07440428,99409.0,99408.0,0.01277758]
[1733500784886,0.07440428,99409.0,99408.0,0.006]
[1733500785336,0.02440428,99409.0,99408.0,0.007]
[1733500785781,0.02440428,99409.0,99408.0,0.006]
[1733500786011,0.02440428,99409.0,99408.0,0.16989351]
[1733500786235,0.02440428,99409.0,99408.0,0.17389351]
[1733500786486,0.02440428,99409.0,99408.0,0.16989351]
[1733500786929,0.02440428,99409.0,99408.0,0.17189351]
[1733500787161,0.02440428,99409.0,99408.0,0.17089351]
[1733500787418,0.02440428,99409.0,99408.0,0.17589351]
[1733500787655,0.02440428,99409.0,99408.0,0.17489351]
[1733500787889,0.02440428,99409.0,99408.0,0.17689351]
[1733500788619,0.03944419,99409.0,99408.0,0.17689351]
[1733500788844,0.02442617,99409.0,99408.0,0.17689351]
[1733500790223,0.0009951,99421.0,99408.0,0.17689351]
[1733500790224,0.0166529,99421.0,99408.0,0.17689351]
[1733500790475,0.17941782,99468.0,99408.0,0.17689351]
[1733500790476,0.0017304,99440.0,99429.0,0.892548]
[1733500790689,0.001729,99480.0,99439.0,0.023]
[1733500790690,0.20109,99458.0,99439.0,0.023]
[1733500790916,0.11828721,99480.0,99439.0,0.023]